bitfinex-derivatives/quotes_ETHF0:USTF0_20260305
["timestamp","ask_amount","ask_price","bid_price","bid_amount"]
[1772723272971,0.59021821,2100.5,2099.4,0.00484643]
[1772723273674,0.59021821,2100.1,2098.8,0.59752998]
[1772723273976,0.59021821,2099.5,2098.1,0.81868248]
[1772723274383,0.59021821,2099.3,2098.1,0.81868248]
[1772723274569,0.59021821,2099.1,2098.1,0.82378624]
[1772723274973,0.59021821,2099.1,2098.1,1.42131622]
[1772723275480,0.59021821,2099.1,2098.1,0.82378624]
[1772723275778,0.59021821,2098.8,2097.6,0.59752998]
[1772723276177,0.59021821,2098.8,2097.0,0.59752998]
[1772723276381,5.8605,2098.5,2096.7,0.39187198]
[1772723276575,5.8605,2098.5,2096.8,0.59752998]
[1772723276576,0.59021821,2098.2,2096.8,0.59752998]
[1772723276778,0.59021821,2098.2,2096.8,0.60143255]
[1772723276982,0.59021821,2099.1,2097.7,0.59752998]
[1772723277173,0.59021821,2099.1,2097.4,5.86352]
[1772723277379,0.00359637,2099.3,2097.4,5.86352]
[1772723277380,0.59021821,2099.0,2097.4,0.59752998]
[1772723277574,0.59381458,2099.3,2098.0,0.59752998]
[1772723277875,0.59381458,2099.3,2098.2,0.59752998]
[1772723279281,0.59381458,2099.3,2097.9,0.59752998]
[1772723279688,0.00359637,2099.3,2097.9,0.59752998]
[1772723279883,0.00359637,2099.3,2098.1,0.59752998]
[1772723280187,0.00359637,2099.3,2098.3,0.59752998]
[1772723280481,0.59021821,2099.2,2098.3,0.00371437]
[1772723281388,0.59021821,2099.0,2097.8,0.59752998]
[1772723281577,0.59021821,2099.0,2096.9,4.16637094]
[1772723281578,0.59021821,2098.8,2097.1,0.59752998]
[1772723281983,0.59021821,2098.4,2096.7,0.98940196]
[1772723282181,0.59021821,2098.4,2096.8,0.59752998]
[1772723282384,0.59021821,2098.7,2097.2,0.59752998]
[1772723282587,0.59021821,2098.7,2097.6,0.59752998]
[1772723282784,0.59021821,2099.1,2097.6,0.59752998]
[1772723283191,0.59021821,2099.0,2097.6,0.59752998]
[1772723283493,0.59021821,2099.0,2096.6,6.36561]
[1772723283494,0.59021821,2098.8,2097.0,0.59752998]
[1772723283789,0.59021821,2098.4,2096.7,0.39187198]
[1772723283980,0.59021821,2098.2,2096.7,0.39187198]
[1772723284185,0.59021821,2098.2,2096.8,0.60320378]
[1772723285390,0.59021821,2098.1,2096.8,0.0056738]
[1772723285587,0.59021821,2097.7,2096.7,0.39187198]
[1772723285785,0.59021821,2097.5,2096.6,0.30800767]
[1772723286282,0.27458614,2097.0,2095.6,1.09752998]
[1772723286484,2.24123335,2097.1,2095.8,0.59752998]
[1772723286792,2.52169312,2097.1,2096.1,0.59752998]
[1772723287289,2.24710698,2097.1,2096.1,1.0]
[1772723287483,0.27601475,2097.0,2095.8,0.59901222]
[1772723287886,0.27601475,2097.0,2095.9,0.59752998]
[1772723288186,0.27601475,2096.8,2095.8,0.00148224]
[1772723288583,0.27601475,2096.8,2095.8,0.59901222]
[1772723288791,2.52312173,2097.1,2095.9,0.59752998]
[1772723289289,0.27329887,2097.0,2095.9,0.59752998]
[1772723289694,0.27329887,2097.0,2095.8,0.00148224]
[1772723289889,0.27329887,2096.9,2095.8,0.00148224]
[1772723290087,0.27329887,2096.9,2095.8,1.59901222]
[1772723290290,2.24710698,2097.1,2095.8,0.59901222]
[1772723290688,2.24710698,2097.1,2095.9,0.59752998]
[1772723290995,0.27329887,2098.2,2096.5,0.59752998]
[1772723291290,0.27329887,2098.5,2096.7,0.59752998]
[1772723291789,0.27792404,2098.4,2097.4,0.59752998]
[1772723291998,0.27792404,2098.4,2097.4,0.0038185]
[1772723292189,0.27792404,2098.2,2097.4,0.0038185]
[1772723292496,0.27792404,2098.1,2096.2,0.59752998]
[1772723293093,0.27792404,2098.1,2096.5,0.59752998]
[1772723293289,0.27792404,2098.1,2096.5,0.60106735]
[1772723293589,0.23825,2098.3,2096.9,0.59752998]
[1772723293797,0.28047794,2098.2,2096.9,0.59752998]
[1772723294292,0.28047794,2098.0,2096.9,0.59752998]
[1772723294694,0.28047794,2098.0,2096.6,0.59752998]
[1772723295383,0.28047794,2098.0,2096.7,0.59752998]
[1772723295985,0.28292714,2097.8,2096.5,0.00353737]
[1772723296193,0.30738977,2097.6,2096.5,0.54586735]
[1772723296489,0.30738977,2097.6,2096.0,0.59752998]
[1772723297093,0.33458977,2097.9,2096.6,0.59752998]
[1772723297496,0.33596259,2097.7,2096.6,0.59752998]
[1772723297990,0.33596259,2097.7,2096.3,0.59752998]
[1772723298188,0.23833,2097.6,2096.3,0.59752998]
[1772723298395,0.33596259,2097.5,2096.3,0.59752998]
[1772723299096,0.23835,2097.4,2096.3,0.59752998]
[1772723299296,0.23835,2097.4,2095.7,1.04102657]
[1772723299297,0.33691753,2097.1,2095.7,1.04102657]
[1772723299498,0.2384,2097.0,2096.0,0.54102657]
[1772723299687,0.00454501,2097.0,2096.0,0.54102657]
[1772723300088,0.37083009,2097.0,2096.0,0.54102657]
[1772723300295,0.36628508,2096.0,2095.4,0.5]
[1772723300492,0.36628508,2096.0,2095.0,0.5]
[1772723301186,5.86887,2095.5,2094.7,0.01469]
[1772723301399,5.87431,2093.6,2093.0,0.2534312]
[1772723301694,5.87819,2092.2,2091.2,0.5]
[1772723301892,5.87865,2092.0,2091.0,0.31692287]
[1772723302097,4.07569359,2093.2,2091.3,0.60132529]
[1772723302294,0.59925925,2092.9,2091.6,0.54102657]
[1772723302595,3.99166282,2092.2,2091.6,0.00122284]
[1772723302792,0.60498895,2092.9,2091.6,0.00122284]
[1772723302997,0.60498895,2092.9,2091.6,5.88097284]
[1772723303196,0.60498895,2092.9,2091.6,0.00122284]
[1772723303591,0.0036822,2092.9,2091.9,0.01656154]
[1772723303788,0.0036822,2092.9,2092.0,5.87866]
[1772723303989,0.0036822,2092.9,2092.1,0.01656154]
[1772723304190,0.0036822,2092.9,2091.8,0.25555154]
[1772723304394,0.60294145,2092.9,2091.5,0.01656154]
[1772723304596,0.59925925,2092.2,2090.4,0.5]
[1772723304798,0.59925925,2092.0,2090.6,0.51656154]
[1772723304998,0.59925925,2092.0,2090.7,0.01656154]
[1772723305193,7.7746822,2092.9,2090.7,0.01656154]
[1772723305194,0.59925925,2092.3,2091.5,1.0]
[1772723305497,0.59925925,2092.3,2090.3,6.38331]
[1772723305896,0.60972058,2092.2,2090.3,0.5]
[1772723306197,0.60972058,2091.2,2090.3,0.5]
[1772723306398,0.60972058,2091.2,2088.9,0.5]
[1772723306399,0.59925925,2090.4,2088.9,0.5]
[1772723306598,0.56887417,2090.2,2088.9,0.5]
[1772723306799,0.56887417,2090.7,2088.8,0.57045402]
[1772723306999,0.56887417,2090.7,2088.4,0.5]
[1772723307000,0.56887417,2091.5,2089.7,0.57045402]
[1772723307197,0.56887417,2091.5,2089.9,0.57045402]
[1772723307398,0.56887417,2092.3,2090.4,0.57045402]
[1772723307700,0.56887417,2091.7,2090.5,0.57045402]
[1772723307902,0.56887417,2091.7,2090.5,0.57406231]
[1772723307903,0.57386253,2091.7,2090.5,0.57406231]
[1772723308106,0.56887417,2091.6,2090.6,1.32044491]
[1772723308297,5.88451836,2091.7,2090.6,1.32044491]
[1772723308298,0.56887417,2091.5,2090.6,1.14194581]
[1772723308501,0.00498836,2091.7,2090.8,2.5]
[1772723308696,0.23889,2092.7,2090.6,1.71239983]
[1772723308697,0.56887417,2093.1,2091.0,0.57045402]
[1772723308901,0.56887417,2092.7,2091.0,0.57045402]
[1772723309198,0.56887417,2091.5,2090.5,0.00360829]
[1772723309393,0.56887417,2091.5,2090.7,1.14194581]
[1772723309595,0.56887417,2091.5,2090.7,1.03459815]
[1772723309796,0.57231741,2091.5,2090.7,1.03459815]
[1772723310502,0.57231741,2091.5,2090.5,0.00360829]
[1772723310699,0.57231741,2091.5,2090.6,1.03459815]
[1772723310899,0.56887417,2092.6,2090.9,0.57045402]
[1772723311198,0.56887417,2092.5,2090.9,0.57045402]
[1772723311397,0.56887417,2092.5,2091.0,1.03459815]
[1772723311595,0.56887417,2091.9,2091.0,1.03459815]
[1772723312002,0.57485344,2091.9,2091.2,2.5]
[1772723312205,0.57485344,2091.9,2090.5,0.00360829]
[1772723312402,0.56887417,2091.7,2090.5,0.00360829]
[1772723312606,0.56887417,2091.7,2090.5,0.57406231]
[1772723313000,0.56887417,2091.7,2090.6,2.5]
[1772723313495,0.56887417,2091.7,2090.5,0.57406231]
[1772723314198,0.56887417,2091.7,2090.5,0.00360829]
[1772723314401,0.56887417,2091.7,2090.5,0.57406231]
[1772723315104,0.00597927,2091.9,2091.0,0.57045402]
[1772723315300,0.57485344,2091.9,2091.0,0.57045402]
[1772723315499,0.57485344,2091.9,2091.3,2.5]
[1772723315903,0.56887417,2092.3,2091.0,0.57045402]
[1772723316096,0.56887417,2092.7,2090.8,0.57045402]
[1772723316300,0.56887417,2092.5,2090.8,0.57045402]
[1772723316702,0.56887417,2092.5,2090.9,0.57045402]
[1772723317003,0.5747378,2092.5,2090.9,0.57045402]
[1772723317203,0.5747378,2092.5,2090.7,0.57045402]
[1772723317204,0.56887417,2092.3,2090.7,0.57045402]
[1772723317503,0.56887417,2092.1,2090.7,0.57045402]
[1772723317708,0.56887417,2092.1,2090.8,2.49402073]
[1772723317901,0.56887417,2092.1,2090.7,0.57045402]
[1772723318101,0.56887417,2092.1,2090.9,2.49402073]
[1772723318407,0.56887417,2091.5,2090.5,0.00360829]
[1772723318607,0.56887417,2091.3,2090.5,0.00360829]
[1772723318802,0.23903,2091.4,2089.5,0.57045402]
[1772723318803,0.56887417,2091.1,2089.5,0.57045402]
[1772723319006,0.56887417,2091.7,2090.0,0.57045402]
[1772723319300,0.56887417,2091.7,2089.5,5.88561]
[1772723319301,0.56887417,2091.1,2089.5,0.57045402]
[1772723319506,0.56887417,2091.1,2088.9,0.57045402]
[1772723319507,0.56887417,2090.9,2088.9,0.57045402]
[1772723319812,0.57446456,2090.9,2088.9,0.574764]
[1772723320010,0.57446456,2090.9,2089.7,0.57045402]
[1772723320198,0.57446456,2090.9,2089.4,0.57045402]
[1772723320400,0.57446456,2090.9,2089.7,0.57045402]
[1772723320702,0.00559039,2090.9,2089.7,0.57045402]
[1772723320904,0.56887417,2091.9,2090.8,2.49402073]
[1772723321104,0.56887417,2091.5,2090.4,0.57045402]
[1772723321299,0.56887417,2091.5,2090.4,0.56865569]
[1772723321500,0.55169307,2091.1,2090.0,0.57045402]
[1772723321905,0.55169307,2090.9,2090.0,0.00386574]
[1772723322213,0.55169307,2090.9,2089.4,0.57045402]
[1772723322413,0.55169307,2090.9,2089.8,0.57045402]
[1772723322709,0.55169307,2090.7,2089.2,0.57045402]
[1772723322905,0.55169307,2090.7,2089.4,0.57045402]
[1772723323106,0.55169307,2090.5,2089.4,0.00443205]
[1772723323309,0.55347717,2090.3,2089.4,0.00443205]
[1772723323710,0.23915,2090.4,2088.4,0.5]
[1772723323711,0.55347717,2090.1,2088.4,0.5]
[1772723323906,0.55347717,2089.9,2088.4,0.5]
[1772723324108,0.55347717,2089.7,2088.4,0.5]
[1772723324303,0.55347717,2089.7,2088.5,0.57045402]
[1772723324705,0.55347717,2089.7,2088.5,0.5760096]
[1772723324906,0.55347717,2089.7,2088.5,0.00555558]
[1772723325406,0.56887417,2090.3,2089.5,1.02076375]
[1772723325605,0.56887417,2090.3,2088.5,0.00555558]
[1772723325606,0.56887417,2090.3,2089.1,0.57045402]
[1772723325810,0.56887417,2090.9,2089.6,1.02076375]
[1772723326012,0.56887417,2090.9,2089.5,0.57045402]
[1772723326314,0.00461501,2091.1,2090.3,1.02076375]
[1772723326514,0.57348918,2091.1,2090.3,0.00594855]
[1772723327719,0.00461501,2091.1,2090.3,0.57685233]
[1772723328121,0.06256041,2092.2,2090.3,0.57685233]
[1772723328313,0.06256041,2092.0,2090.3,0.57685233]
[1772723328516,0.74714828,2092.1,2090.3,0.00594855]
[1772723328517,0.06256041,2091.3,2090.3,0.00594855]
[1772723328715,0.06256041,2091.9,2090.3,0.57685233]
[1772723329011,0.06171082,2091.5,2090.3,0.57685233]
[1772723329315,0.80913072,2091.4,2090.3,0.57685233]
[1772723329614,0.80976386,2091.3,2090.3,0.57685233]
[1772723329815,0.7474199,2091.2,2090.3,0.57685233]
[1772723330322,0.06774526,2091.9,2090.3,0.57685233]
[1772723331218,0.54313445,2091.7,2090.3,0.57685233]
[1772723331517,5.87955,2091.7,2090.3,0.57685233]
[1772723331722,0.54313445,2090.9,2089.5,0.55111174]
[1772723332218,0.54313445,2091.5,2090.0,0.55111174]
[1772723332719,0.54313445,2091.8,2090.2,0.55111174]
[1772723332921,0.54313445,2091.6,2090.2,0.55111174]
[1772723333121,0.54313445,2091.3,2090.0,0.55690482]
[1772723333321,0.54313445,2091.1,2090.0,0.55690482]
[1772723333723,0.54313445,2090.9,2090.0,0.00579308]
[1772723333915,0.54313445,2090.5,2089.3,0.55111174]
[1772723334426,0.54313445,2090.3,2088.5,0.55111174]
[1772723334824,0.54313445,2090.1,2088.5,0.55484196]
[1772723335019,0.54313445,2089.9,2088.5,0.55484196]
[1772723335625,0.54313445,2089.7,2088.5,0.55484196]
[1772723335826,5.59141458,2089.8,2088.5,0.55484196]
[1772723335827,5.89370903,2089.6,2088.5,0.55484196]
[1772723336121,0.54313445,2089.9,2088.5,0.55484196]
[1772723337721,0.54313445,2089.9,2088.7,0.55111174]
[1772723337923,0.54313445,2089.8,2088.5,0.00373022]
[1772723338325,0.54313445,2089.8,2088.5,0.55484196]
[1772723338921,0.54313445,2090.2,2088.5,0.79420196]
[1772723339125,0.54313445,2090.2,2088.7,0.55111174]
[1772723339323,0.54313445,2090.0,2088.7,0.55111174]
[1772723339826,0.54821506,2090.3,2088.7,0.55111174]
[1772723340233,0.00508061,2090.3,2088.9,0.55111174]
[1772723340733,0.54313445,2090.9,2089.3,0.55111174]
[1772723341029,0.78225445,2090.6,2089.5,0.55111174]
[1772723341228,0.54313445,2091.0,2089.5,0.55111174]
[1772723341428,0.54313445,2090.8,2089.5,0.55111174]
[1772723341932,0.5470182,2090.8,2089.5,0.55111174]
[1772723342130,0.5470182,2090.8,2089.7,0.55111174]
[1772723342332,0.67456142,2090.7,2089.7,0.55111174]
[1772723342632,0.67456142,2090.6,2089.7,0.55111174]
[1772723342839,0.00388375,2090.8,2089.7,0.55111174]
[1772723342840,0.67456142,2090.5,2089.7,0.55111174]
[1772723343132,0.67456142,2090.4,2089.7,0.55111174]
[1772723343434,0.5470182,2090.8,2089.7,0.55111174]
[1772723343733,0.67472643,2090.7,2089.4,0.55111174]
[1772723343924,0.67472643,2090.6,2089.4,0.55111174]
[1772723344128,0.67472643,2090.5,2089.6,0.55111174]
[1772723344335,0.54313445,2090.6,2089.3,0.70523049]
[1772723344336,0.54313445,2090.2,2089.3,0.70523049]
[1772723344529,0.54313445,2090.2,2089.0,0.55111174]
[1772723344530,0.54313445,2089.8,2088.7,0.55111174]
[1772723344832,0.54313445,2089.6,2088.6,0.71273158]
[1772723345032,0.54313445,2089.4,2088.4,0.5]
[1772723345233,0.08998789,2089.2,2088.4,0.5]
[1772723345432,0.76442144,2089.1,2088.4,0.5]
[1772723345631,0.67472643,2089.0,2088.4,0.5]
[1772723345933,0.08969501,2090.0,2088.5,0.55691168]
[1772723346124,0.08969501,2089.6,2088.5,0.71011269]
[1772723346428,0.08969501,2089.4,2088.5,0.71011269]
[1772723346832,0.08969501,2089.7,2088.6,0.55691168]
[1772723347529,0.09350968,2090.0,2088.6,0.55691168]
[1772723347936,0.0896225,2089.9,2088.6,0.55691168]
[1772723348635,0.0896225,2089.7,2088.6,0.55691168]
[1772723348934,0.0896225,2089.5,2088.5,1.26706062]
[1772723349636,0.09044111,2089.9,2088.6,0.55653863]
[1772723349933,0.00388718,2090.0,2088.6,0.55653863]
[1772723350427,0.09432829,2090.0,2088.6,0.55653863]
[1772723350630,0.09044111,2089.8,2088.6,0.55653863]
[1772723350835,0.09044111,2089.6,2088.6,0.55653863]
[1772723351325,0.08310143,2089.2,2088.5,0.71011269]
[1772723351528,0.08310143,2089.0,2088.5,0.05124028]
[1772723352632,5.45288015,2089.3,2088.5,0.05124028]
[1772723352934,0.08310143,2089.1,2088.5,0.05124028]
[1772723353532,0.08310143,2089.1,2088.4,0.5]
[1772723353943,0.0813514,2088.9,2088.0,0.5]
[1772723354437,5.36214711,2089.4,2088.2,0.60175919]
[1772723354635,0.23925,2089.5,2088.2,0.60175919]
[1772723355029,5.36323125,2089.7,2088.2,0.60175919]
[1772723355234,0.00288445,2089.5,2088.3,0.60175919]
[1772723355534,0.23935,2088.7,2087.9,0.5]
[1772723355733,0.23935,2088.7,2087.9,0.48613975]
[1772723355934,7.921,2088.6,2087.9,0.48613975]
[1772723356130,5.59928022,2088.5,2087.4,0.5]
[1772723356434,0.23937,2088.5,2087.7,0.01339]
[1772723356630,5.36483907,2088.5,2087.7,1.55158598]
[1772723356833,0.00492885,2088.5,2087.7,0.62085257]
[1772723357039,0.00492885,2088.5,2087.7,0.01916627]
[1772723357235,0.00504059,2088.4,2087.7,0.01916627]
[1772723357539,0.00492885,2088.5,2087.8,0.59923889]
[1772723357738,0.00504059,2088.9,2087.8,0.59923889]
[1772723358041,0.14134463,2089.4,2088.3,0.55111174]
[1772723358233,0.54313445,2089.2,2088.3,0.7302075]
[1772723358628,0.49882344,2088.6,2087.7,0.01916627]
[1772723358829,0.50237026,2088.6,2087.7,0.01916627]
[1772723359138,0.49993252,2088.4,2087.7,0.01916627]
[1772723359638,0.49993252,2088.4,2087.6,0.51916627]
[1772723360037,0.00354682,2088.6,2087.6,1.11842755]
[1772723360228,0.50304919,2088.6,2087.7,0.93073341]
[1772723360434,0.50304919,2088.6,2087.6,0.51916627]
[1772723360633,0.50304919,2088.6,2087.7,0.59926128]
[1772723360836,0.00354682,2088.6,2088.0,0.93073341]
[1772723361033,0.50304919,2088.6,2087.6,1.12254455]
[1772723361434,0.50304919,2088.6,2087.6,0.52328327]
[1772723361639,0.50193634,2088.4,2087.6,0.52328327]
[1772723361835,0.50193634,2088.4,2087.6,0.004117]
[1772723362036,0.49781934,2088.2,2087.5,0.18727933]
[1772723362342,0.23941,2088.1,2087.5,0.18727933]
[1772723362534,5.65109264,2088.1,2087.5,0.18727933]
[1772723362743,0.23941,2088.1,2087.5,0.18727933]
[1772723362941,0.23941,2088.1,2087.5,0.18809118]
[1772723363137,5.41142891,2088.2,2087.5,0.70725745]
[1772723363340,0.0028757,2088.1,2087.5,1.8e-06]
[1772723363544,0.23942,2088.0,2087.5,1.8e-06]
[1772723363741,17.22052561,2088.3,2087.5,1.8e-06]
[1772723363938,7.941,2088.2,2087.5,1.8e-06]
[1772723364242,5.64816422,2088.1,2087.4,0.5]
[1772723364440,0.23941,2088.1,2087.4,0.5]
[1772723364642,5.64823591,2088.1,2087.4,0.5]
[1772723364938,0.00354682,2088.6,2087.5,0.60226556]
[1772723365140,0.00354682,2088.6,2087.4,1.01916627]
[1772723365341,0.0123314,2088.4,2087.4,1.01916627]
[1772723365542,0.0123314,2088.0,2087.4,1.01916627]
[1772723365742,0.0123314,2087.8,2087.0,0.5]
[1772723366538,7.952,2088.3,2087.1,0.59926128]
[1772723366745,7.96461742,2088.3,2087.1,0.59926128]
[1772723366944,0.01261742,2088.0,2087.1,0.59926128]
[1772723367141,7.952,2088.3,2087.0,0.5]
[1772723367142,0.01261742,2087.8,2087.0,0.5]
[1772723367443,0.01261742,2087.6,2087.0,0.5]
[1772723367640,0.01261742,2087.6,2086.9,0.71384649]
[1772723367940,0.01323441,2087.5,2086.1,0.60245673]
[1772723368245,8.2004,2088.2,2086.7,0.60245673]
[1772723368449,6.13029,2087.7,2086.7,0.70993069]
[1772723368841,0.23946,2087.7,2086.8,0.93073341]
[1772723369143,0.23952,2087.2,2086.7,0.70993069]
[1772723369733,0.23952,2087.2,2086.2,0.60245673]
[1772723369934,0.74723392,2087.1,2086.1,0.71020569]
[1772723370140,0.74723392,2087.0,2086.2,0.60934581]
[1772723370338,0.74723392,2086.9,2086.2,0.60934581]
[1772723370539,0.00381127,2087.1,2086.2,0.60934581]
[1772723370936,8.20946,2087.8,2086.1,0.71020569]
[1772723370937,0.23946,2087.8,2086.8,0.60934581]
[1772723371142,7.974,2088.2,2086.8,0.60934581]
[1772723371342,0.23939,2088.4,2087.2,0.61085808]
[1772723371543,0.23939,2088.4,2087.3,0.61085808]
[1772723371840,11.84675549,2089.2,2087.9,0.61085808]
[1772723372037,5.39866011,2089.1,2087.9,0.61457177]
[1772723372242,7.9820295,2089.2,2087.9,0.61457177]
[1772723372450,6.12613,2089.1,2087.9,0.00371369]
[1772723372650,6.12613,2089.1,2086.7,0.96531836]
[1772723372651,5.89141,2087.5,2086.7,0.72574836]
[1772723372944,14.10965,2087.9,2086.7,1.33660644]
[1772723373146,8.21944,2087.9,2086.8,0.61085808]
[1772723373342,8.21944,2087.9,2086.7,0.72574836]
[1772723373343,14.10969,2087.9,2086.7,0.72574836]
[1772723373543,8.21944,2087.9,2086.7,0.72574836]
[1772723373743,8.22347783,2087.9,2086.7,1.33414648]
[1772723373948,14.11370783,2087.9,2086.7,1.33414648]
[1772723374247,10.37052122,2087.7,2086.7,0.72574836]
[1772723374543,10.37052122,2087.7,2086.3,0.60839812]
[1772723374544,0.23948,2087.5,2086.3,0.60839812]
[1772723374743,0.23948,2087.5,2086.3,1.14145153]
[1772723374946,0.23948,2087.5,2086.3,0.60839812]
[1772723375140,8.22948,2087.5,2086.4,0.53305341]
[1772723375546,5.47285458,2087.4,2085.7,0.60733623]
[1772723375851,4.24029122,2087.7,2085.8,0.60733623]
[1772723376051,0.23948,2087.5,2085.8,0.60733623]
[1772723376252,0.23948,2087.5,2086.1,0.60733623]
[1772723376753,7.993,2087.6,2086.6,1.14038964]
[1772723376948,7.993,2087.6,2086.6,0.81522852]
[1772723377151,8.23247,2087.6,2086.6,1.34828193]
[1772723377447,8.23247,2087.6,2086.6,0.81522852]
[1772723377653,8.23247,2087.6,2086.8,0.53305341]
[1772723377853,8.23247,2087.6,2086.8,0.60582054]
[1772723378246,0.23947,2087.6,2086.8,0.60582054]
[1772723378442,0.23947,2087.6,2086.6,0.81371283]
[1772723378646,5.4760884,2087.8,2086.8,0.53305341]
[1772723378647,0.23946,2087.7,2086.8,0.53305341]
[1772723378851,0.23946,2087.7,2086.7,0.60582054]
[1772723379248,0.23946,2087.7,2086.8,0.53305341]
[1772723379554,0.23946,2087.7,2085.6,0.60383973]
[1772723379754,0.23946,2087.7,2086.6,0.60383973]
[1772723380154,8.24046,2087.7,2086.6,0.60383973]
[1772723380356,0.00403783,2087.9,2086.6,0.60383973]
[1772723380556,0.00127184,2088.5,2086.9,0.60182081]
[1772723380757,13.50923715,2088.7,2087.3,0.60182081]
[1772723380952,0.00127184,2088.5,2087.3,0.60182081]
[1772723381153,0.00127184,2088.5,2087.6,0.53305341]
[1772723381353,8.001,2088.7,2087.7,0.60182081]
[1772723381650,5.51288907,2088.6,2087.9,0.53305341]
[1772723381858,0.24294572,2088.4,2087.7,0.21060737]
[1772723382055,5.75438993,2088.4,2087.7,0.21060737]
[1772723382247,0.00356572,2088.3,2087.2,0.60067387]
[1772723382655,0.24297572,2088.1,2087.2,0.60067387]
[1772723382849,0.00356572,2087.9,2086.3,0.60067387]
[1772723383057,0.00356572,2088.2,2086.7,0.60067387]
[1772723383657,5.51330133,2088.4,2086.9,0.55423515]
[1772723383961,0.59834118,2088.2,2086.9,0.55423515]
[1772723384164,3.86975549,2088.5,2086.9,0.55423515]
[1772723384367,6.11606745,2088.5,2086.9,0.55423515]
[1772723384560,0.00364729,2088.7,2087.3,0.55423515]
[1772723384764,3.86975549,2089.2,2087.5,0.55423515]
[1772723384952,3.86975549,2089.5,2087.8,5.89038]
[1772723385161,0.23922,2089.8,2088.0,0.23942]
[1772723385358,0.23922,2089.8,2088.1,0.55423515]
[1772723385758,0.23922,2089.8,2088.3,0.55423515]
[1772723385759,0.00458314,2089.8,2088.3,0.55423515]
[1772723385966,0.59834118,2090.5,2088.7,0.55423515]
[1772723386362,0.83748118,2090.5,2088.7,0.55423515]
[1772723386559,0.23916,2090.3,2088.7,0.55423515]
[1772723386761,0.59834118,2090.0,2088.7,0.55423515]
[1772723386966,0.59834118,2089.8,2088.7,0.55423515]
[1772723387461,0.59834118,2089.8,2088.2,0.55423515]
[1772723387667,0.59834118,2089.4,2088.2,0.55423515]
[1772723387863,0.59834118,2089.2,2088.1,0.00354283]
[1772723388067,0.59834118,2089.0,2088.1,0.00354283]
[1772723388568,0.59834118,2089.3,2088.1,0.55777798]
[1772723388765,0.59834118,2089.6,2088.1,0.55777798]
[1772723389766,0.54695207,2089.0,2088.1,0.00354283]
[1772723391073,5.88489,2089.8,2088.1,0.57724977]
[1772723391074,0.54695207,2089.3,2088.1,0.57724977]
[1772723391862,0.54695207,2089.1,2088.1,0.57724977]
[1772723392061,4.24029122,2089.4,2088.1,0.57724977]
[1772723392062,0.54695207,2088.9,2088.1,0.00354283]
[1772723392263,0.54695207,2089.3,2088.1,0.57724977]
[1772723393067,0.54695207,2088.9,2087.5,0.57370694]
[1772723393376,0.54695207,2088.7,2086.9,0.57370694]
[1772723393675,0.54695207,2088.5,2086.9,0.57370694]
[1772723394168,0.00414112,2088.5,2087.3,0.57370694]
[1772723394370,0.00414112,2088.5,2087.5,0.57370694]
[1772723395074,0.7126718,2088.4,2087.5,0.57370694]
[1772723395276,0.55109319,2088.5,2087.5,0.57370694]
[1772723395476,0.00414112,2088.5,2087.5,0.57370694]
[1772723396669,0.54695207,2088.9,2087.5,0.57370694]
[1772723397071,0.78628207,2088.9,2087.5,0.57370694]
[1772723397568,0.54695207,2089.2,2087.7,0.57370694]
[1772723397878,0.54695207,2089.0,2087.7,0.57370694]
[1772723399079,0.2393,2089.1,2087.7,0.57370694]
[1772723399577,0.00423399,2089.2,2087.7,0.57370694]
[1772723399773,0.00423399,2089.2,2087.9,0.57370694]
[1772723399980,0.54695207,2089.5,2088.1,0.57370694]
[1772723400474,0.54695207,2089.3,2088.1,0.57370694]
[1772723400679,0.54695207,2089.8,2088.1,0.57370694]
[1772723400882,0.00409709,2089.8,2088.7,0.57370694]
[1772723401072,0.54695207,2090.4,2089.1,0.57370694]
[1772723401277,0.54695207,2090.7,2089.3,0.57370694]
[1772723401579,0.54695207,2090.9,2089.5,0.57370694]
[1772723401779,0.23909,2091.0,2089.5,0.57370694]
[1772723401780,0.54695207,2090.7,2089.5,0.57370694]
[1772723402174,0.54695207,2090.5,2089.5,0.57370694]
[1772723402482,0.23912,2090.6,2089.5,0.57370694]
[1772723402679,0.54695207,2090.5,2089.5,0.57370694]
[1772723402982,0.54695207,2089.9,2089.0,0.57370694]
[1772723403174,0.54695207,2089.7,2088.7,0.5793159]
[1772723403372,0.54695207,2089.8,2088.7,0.5793159]
[1772723404276,0.54695207,2090.0,2088.7,0.5793159]
[1772723404673,0.54695207,2089.8,2088.7,0.5793159]
[1772723404878,0.54695207,2089.6,2088.7,0.5793159]
[1772723405283,0.54695207,2090.1,2088.7,0.5793159]
[1772723405680,0.54695207,2090.4,2088.9,0.57370694]
[1772723405880,0.55283127,2090.7,2089.3,0.57370694]
[1772723406279,0.54695207,2090.3,2089.3,0.57370694]
[1772723406479,0.54695207,2089.9,2088.8,0.57370694]
[1772723406678,0.54695207,2090.2,2088.8,0.57370694]
[1772723406882,0.54695207,2090.5,2089.0,0.57370694]
[1772723407083,0.54695207,2090.3,2089.0,0.57370694]
[1772723407683,0.706993,2090.2,2089.0,0.57370694]
[1772723407882,0.54695207,2090.0,2089.0,0.57370694]
[1772723408080,0.70689227,2089.9,2089.0,0.57370694]
[1772723408385,0.54695207,2090.4,2089.0,0.57370694]
[1772723408580,0.54695207,2090.2,2089.0,0.57370694]
[1772723408781,0.70704476,2090.1,2089.0,0.57370694]
[1772723408981,0.54695207,2090.5,2089.0,0.57370694]
[1772723409182,4.24617042,2090.7,2088.7,53.53993896]
[1772723409183,0.70711552,2090.4,2089.2,0.57370694]
[1772723409381,0.78612207,2090.2,2089.2,0.57370694]
[1772723409588,0.70711552,2090.1,2089.2,0.57370694]
[1772723409786,0.54695207,2090.0,2089.2,0.57370694]
[1772723410182,0.70806434,2089.9,2089.2,0.57370694]
[1772723410382,0.23917,2090.2,2089.2,0.57370694]
[1772723410584,0.70813864,2090.1,2089.2,0.57370694]
[1772723410786,0.0058792,2090.7,2089.4,0.57370694]
[1772723410986,0.54695207,2091.2,2089.6,0.57370694]
[1772723411385,0.54695207,2091.2,2089.8,0.57370694]
[1772723411589,0.78600207,2091.3,2089.8,0.57370694]
[1772723411780,0.54695207,2091.2,2089.8,0.57370694]
[1772723411983,0.54695207,2091.2,2089.9,0.57370694]
[1772723412189,0.00429125,2091.2,2089.9,0.57370694]
[1772723412490,0.55124332,2091.2,2089.9,0.57370694]
[1772723412792,0.54695207,2091.9,2090.3,0.57370694]
[1772723413286,0.54695207,2091.5,2090.3,0.57370694]
[1772723413485,0.54695207,2090.9,2089.3,0.57370694]
[1772723413791,0.54695207,2090.7,2089.3,0.57975778]
[1772723414182,0.00550421,2090.9,2089.5,0.57370694]
[1772723414386,0.55245628,2090.9,2089.7,0.57370694]
[1772723414685,0.00550421,2090.9,2089.9,0.57370694]
[1772723414885,0.54695207,2091.2,2089.9,0.57370694]
[1772723415090,4.24029122,2091.7,2089.9,0.57370694]
[1772723415091,0.54695207,2091.5,2089.9,0.57370694]